[Event "Titled Tuesday Blitz February 22 Late 2022"]
[White "Novikov, Evgenij"]
[Black "Todorovic, Bojan"]
[WhiteFideId "4125380"]
[BlackFideId "917087"]
[WhiteElo "2242"]
[BlackElo "2266"]
[Result "1-0"]
[Round "07"]
[TimeControl "180+1"]
[Date "2022.02.23"]
[WhiteClock "0:00:05"]
[BlackClock "0:00:01"]

1. b3 {[%clk 0:02:57]}  Nf6 {[%clk 0:02:57]} 2. Bb2 {[%clk 0:02:57]}  g6 {[%clk 0:02:57]} 3. Bxf6 {[%clk 0:02:56]}  exf6 {[%clk 0:02:57]} 4. c4 {[%clk 0:02:56]}  Bg7 {[%clk 0:02:57]} 5. Nc3 {[%clk 0:02:56]}  O-O {[%clk 0:02:57]} 6. g3 {[%clk 0:02:54]}  f5 {[%clk 0:02:56]} 7. Bg2 {[%clk 0:02:54]}  d6 {[%clk 0:02:55]} 8. e3 {[%clk 0:02:52]}  c6 {[%clk 0:02:54]} 9. Nge2 {[%clk 0:02:52]}  Nd7 {[%clk 0:02:54]} 10. h4 {[%clk 0:02:45]}  h5 {[%clk 0:02:50]} 11. Nf4 {[%clk 0:02:42]}  Re8 {[%clk 0:02:49]} 12. Qc2 {[%clk 0:02:41]}  Nf6 {[%clk 0:02:48]} 13. O-O {[%clk 0:02:37]}  Ne4 {[%clk 0:02:35]} 14. Nfe2 {[%clk 0:02:14]}  d5 {[%clk 0:02:07]} 15. Rac1 {[%clk 0:01:44]}  dxc4 {[%clk 0:02:04]} 16. Nxe4 {[%clk 0:01:44]}  cxb3 {[%clk 0:01:58]} 17. axb3 {[%clk 0:01:39]}  fxe4 {[%clk 0:01:58]} 18. Bxe4 {[%clk 0:01:38]}  Qe7 {[%clk 0:01:41]} 19. Bg2 {[%clk 0:01:34]}  Qb4 {[%clk 0:01:38]} 20. Nc3 {[%clk 0:01:18]}  Be6 {[%clk 0:01:35]} 21. Rb1 {[%clk 0:01:11]}  Rad8 {[%clk 0:01:35]} 22. Rfc1 {[%clk 0:00:46]}  Bf5 {[%clk 0:01:31]} 23. e4 {[%clk 0:00:45]}  Be6 {[%clk 0:01:27]} 24. d3 {[%clk 0:00:41]}  Bxc3 {[%clk 0:01:16]} 25. Qxc3 {[%clk 0:00:40]}  Qxc3 {[%clk 0:01:16]} 26. Rxc3 {[%clk 0:00:41]}  Rd4 {[%clk 0:01:16]} 27. f4 {[%clk 0:00:40]}  Red8 {[%clk 0:01:14]} 28. Bf1 {[%clk 0:00:40]}  Rb4 {[%clk 0:00:59]} 29. Be2 {[%clk 0:00:36]}  a5 {[%clk 0:00:58]} 30. Ra1 {[%clk 0:00:31]}  b6 {[%clk 0:00:43]} 31. Ra3 {[%clk 0:00:27]}  c5 {[%clk 0:00:40]} 32. Kf2 {[%clk 0:00:28]}  Ra8 {[%clk 0:00:39]} 33. Ke3 {[%clk 0:00:28]}  a4 {[%clk 0:00:39]} 34. bxa4 {[%clk 0:00:28]}  Raxa4 {[%clk 0:00:38]} 35. Rxa4 {[%clk 0:00:29]}  Rxa4 {[%clk 0:00:39]} 36. Rc2 {[%clk 0:00:28]}  Kf8 {[%clk 0:00:35]} 37. Rb2 {[%clk 0:00:28]}  Ra6 {[%clk 0:00:31]} 38. Kd2 {[%clk 0:00:22]}  Ba2 {[%clk 0:00:18]} 39. d4 {[%clk 0:00:20]}  c4 {[%clk 0:00:18]} 40. Kc3 {[%clk 0:00:18]}  Ra3+ {[%clk 0:00:13]} 41. Kb4 {[%clk 0:00:17]}  Ra5 {[%clk 0:00:10]} 42. Bxc4 {[%clk 0:00:17]}  Bxc4 {[%clk 0:00:10]} 43. Kxc4 {[%clk 0:00:17]}  Ra3 {[%clk 0:00:10]} 44. Rb3 {[%clk 0:00:15]}  Ra4+ {[%clk 0:00:08]} 45. Kd5 {[%clk 0:00:14]}  Ra5+ {[%clk 0:00:08]} 46. Kd6 {[%clk 0:00:14]}  b5 {[%clk 0:00:06]} 47. d5 {[%clk 0:00:09]}  Ra4 {[%clk 0:00:05]} 48. e5 {[%clk 0:00:09]}  b4 {[%clk 0:00:04]} 49. Kc5 {[%clk 0:00:08]}  Ra5+ {[%clk 0:00:05]} 50. Kc4 {[%clk 0:00:08]}  Ke7 {[%clk 0:00:04]} 51. Rxb4 {[%clk 0:00:08]}  Ra3 {[%clk 0:00:04]} 52. Rb7+ {[%clk 0:00:08]}  Ke8 {[%clk 0:00:04]} 53. Rb3 {[%clk 0:00:09]}  Ra4+ {[%clk 0:00:04]} 54. Kc5 {[%clk 0:00:10]}  Ra5+ {[%clk 0:00:03]} 55. Kc6 {[%clk 0:00:10]}  Ra6+ {[%clk 0:00:03]} 56. Rb6 {[%clk 0:00:10]}  Ra3 {[%clk 0:00:03]} 57. Kd6 {[%clk 0:00:10]}  Kf8 {[%clk 0:00:02]} 58. Rb8+ {[%clk 0:00:09]}  Kg7 {[%clk 0:00:02]} 59. Rb7 {[%clk 0:00:10]}  Ra6+ {[%clk 0:00:02]} 60. Ke7 {[%clk 0:00:09]}  Ra3 {[%clk 0:00:01]} 61. Ke8 {[%clk 0:00:09]}  Rxg3 {[%clk 0:00:01]} 62. Rxf7+ {[%clk 0:00:10]}  Kg8 {[%clk 0:00:01]} 63. d6 {[%clk 0:00:09]}  Ra3 {[%clk 0:00:01]} 64. d7 {[%clk 0:00:09]}  Ra8+ {[%clk 0:00:01]} 65. Ke7 {[%clk 0:00:09]}  Rb8 {[%clk 0:00:01]} 66. e6 {[%clk 0:00:05]} 1-0


[Site "https://www.chess.com"]

[Event "Titled Tuesday Blitz February 22 Late 2022"]
[White "P., Komal Kishore"]
[Black "Moskvin, Anatoly"]
[WhiteFideId "5016703"]
[BlackFideId "24199990"]
[WhiteElo "2047"]
[BlackElo "2079"]
[Result "0-1"]
[Round "07"]
[TimeControl "180+1"]
[Date "2022.02.23"]
[WhiteClock "0:00:09"]
[BlackClock "0:01:08"]

1. e4 {[%clk 0:03:00]}  e5 {[%clk 0:03:00]} 2. Nf3 {[%clk 0:03:00]}  Nc6 {[%clk 0:03:00]} 3. Bb5 {[%clk 0:03:00]}  Nge7 {[%clk 0:03:00]} 4. O-O {[%clk 0:02:59]}  a6 {[%clk 0:03:00]} 5. Ba4 {[%clk 0:02:59]}  d6 {[%clk 0:03:01]} 6. h3 {[%clk 0:02:57]}  Bd7 {[%clk 0:03:01]} 7. c3 {[%clk 0:02:57]}  Ng6 {[%clk 0:03:01]} 8. d4 {[%clk 0:02:56]}  h6 {[%clk 0:03:01]} 9. Re1 {[%clk 0:02:45]}  Be7 {[%clk 0:03:00]} 10. Nbd2 {[%clk 0:02:44]}  Bg5 {[%clk 0:03:00]} 11. Nf1 {[%clk 0:02:41]}  Bxc1 {[%clk 0:02:58]} 12. Rxc1 {[%clk 0:02:35]}  b5 {[%clk 0:02:58]} 13. Bb3 {[%clk 0:02:35]}  Nf4 {[%clk 0:02:59]} 14. Qd2 {[%clk 0:02:27]}  Qf6 {[%clk 0:02:58]} 15. Qe3 {[%clk 0:02:01]}  g5 {[%clk 0:02:32]} 16. dxe5 {[%clk 0:01:48]}  dxe5 {[%clk 0:02:24]} 17. Rcd1 {[%clk 0:01:13]}  h5 {[%clk 0:02:14]} 18. N3h2 {[%clk 0:00:43]}  g4 {[%clk 0:01:48]} 19. Qd2 {[%clk 0:00:16]}  Rd8 {[%clk 0:01:46]} 20. hxg4 {[%clk 0:00:10]}  hxg4 {[%clk 0:01:45]} 21. g3 {[%clk 0:00:10]}  Nh3+ {[%clk 0:01:36]} 22. Kg2 {[%clk 0:00:09]}  Bf5 {[%clk 0:01:11]} 23. Qe2 {[%clk 0:00:09]}  Bxe4+ {[%clk 0:01:08]} 0-1


[Site "https://www.chess.com"]

[Event "Titled Tuesday Blitz February 22 Late 2022"]
[White "Pakleza, Zbigniew"]
[Black "Goltseva, Ekaterina"]
[WhiteFideId "1119290"]
[BlackFideId "24173770"]
[WhiteElo "2467"]
[BlackElo "2140"]
[Result "0-1"]
[Round "07"]
[TimeControl "180+1"]
[Date "2022.02.22"]
[WhiteClock "0:00:05"]
[BlackClock "0:00:16"]

1. d4 {[%clk 0:03:00]}  Nf6 {[%clk 0:02:58]} 2. Nf3 {[%clk 0:03:00]}  e6 {[%clk 0:02:58]} 3. Bf4 {[%clk 0:03:00]}  c5 {[%clk 0:02:58]} 4. c3 {[%clk 0:03:00]}  Qb6 {[%clk 0:02:57]} 5. Qb3 {[%clk 0:03:00]}  Qxb3 {[%clk 0:02:55]} 6. axb3 {[%clk 0:03:01]}  Nc6 {[%clk 0:02:54]} 7. e3 {[%clk 0:03:00]}  d5 {[%clk 0:02:53]} 8. Nbd2 {[%clk 0:02:59]}  cxd4 {[%clk 0:02:53]} 9. exd4 {[%clk 0:02:59]}  Be7 {[%clk 0:02:53]} 10. b4 {[%clk 0:02:59]}  O-O {[%clk 0:02:51]} 11. b5 {[%clk 0:02:54]}  Nd8 {[%clk 0:02:51]} 12. Bd3 {[%clk 0:02:53]}  Bd7 {[%clk 0:02:48]} 13. h3 {[%clk 0:02:46]}  Nh5 {[%clk 0:02:45]} 14. Bh2 {[%clk 0:02:43]}  f5 {[%clk 0:02:42]} 15. Ne5 {[%clk 0:02:28]}  Be8 {[%clk 0:02:41]} 16. O-O {[%clk 0:02:20]}  Nf7 {[%clk 0:02:39]} 17. Ra2 {[%clk 0:02:08]}  Bd6 {[%clk 0:02:26]} 18. Rfa1 {[%clk 0:02:02]}  f4 {[%clk 0:02:16]} 19. Nxf7 {[%clk 0:01:55]}  Bxf7 {[%clk 0:02:12]} 20. Rxa7 {[%clk 0:01:53]}  Rab8 {[%clk 0:02:13]} 21. Nf3 {[%clk 0:01:47]}  h6 {[%clk 0:02:06]} 22. Ne5 {[%clk 0:01:44]}  Bxe5 {[%clk 0:01:59]} 23. dxe5 {[%clk 0:01:45]}  g5 {[%clk 0:01:59]} 24. f3 {[%clk 0:01:25]}  Kg7 {[%clk 0:01:50]} 25. Kf2 {[%clk 0:01:15]}  Bg6 {[%clk 0:01:49]} 26. Ke2 {[%clk 0:01:12]}  Bxd3+ {[%clk 0:01:45]} 27. Kxd3 {[%clk 0:01:13]}  Kg6 {[%clk 0:01:41]} 28. Bg1 {[%clk 0:01:10]}  Rfc8 {[%clk 0:01:40]} 29. b4 {[%clk 0:01:00]}  Ng3 {[%clk 0:01:34]} 30. Bc5 {[%clk 0:00:55]}  Nf5 {[%clk 0:01:34]} 31. b6 {[%clk 0:00:48]}  Rd8 {[%clk 0:01:27]} 32. R1a2 {[%clk 0:00:45]}  Kf7 {[%clk 0:01:23]} 33. Kc2 {[%clk 0:00:39]}  d4 {[%clk 0:01:13]} 34. c4 {[%clk 0:00:29]}  d3+ {[%clk 0:01:10]} 35. Kc3 {[%clk 0:00:25]}  Ne3 {[%clk 0:01:06]} 36. Rd2 {[%clk 0:00:26]}  Rd7 {[%clk 0:00:49]} 37. Bd6 {[%clk 0:00:23]}  Rc8 {[%clk 0:00:46]} 38. c5 {[%clk 0:00:24]}  Nd5+ {[%clk 0:00:37]} 39. Kb3 {[%clk 0:00:23]}  Ne3 {[%clk 0:00:34]} 40. b5 {[%clk 0:00:21]}  Ke8 {[%clk 0:00:33]} 41. Kc3 {[%clk 0:00:20]}  Nf5 {[%clk 0:00:29]} 42. Kxd3 {[%clk 0:00:15]}  Rxc5 {[%clk 0:00:28]} 43. Rxb7 {[%clk 0:00:08]}  Rd5+ {[%clk 0:00:24]} 44. Kc4 {[%clk 0:00:09]}  Nxd6+ {[%clk 0:00:18]} 45. exd6 {[%clk 0:00:07]}  Rxb7 {[%clk 0:00:18]} 46. Rxd5 {[%clk 0:00:05]}  exd5+ {[%clk 0:00:18]} 47. Kxd5 {[%clk 0:00:06]}  Kd7 {[%clk 0:00:16]} 48. Kc5 {[%clk 0:00:05]}  Rb8 {[%clk 0:00:16]} 0-1


[Site "https://www.chess.com"]

[Event "Titled Tuesday Blitz February 22 Late 2022"]
[White "Papasimakopoulos, Alexandros"]
[Black "Cunha, Lucas Aguiar"]
[WhiteFideId "4244125"]
[BlackFideId "2125404"]
[WhiteElo "2749"]
[BlackElo "2547"]
[Result "1-0"]
[Round "07"]
[TimeControl "180+1"]
[Date "2022.02.23"]
[WhiteClock "0:00:21"]
[BlackClock "0:00:20"]

1. d4 {[%clk 0:02:23]}  Nf6 {[%clk 0:02:59]} 2. c4 {[%clk 0:02:24]}  e6 {[%clk 0:03:00]} 3. Nc3 {[%clk 0:02:23]}  Bb4 {[%clk 0:03:00]} 4. Qc2 {[%clk 0:02:24]}  Nc6 {[%clk 0:03:00]} 5. Nf3 {[%clk 0:02:22]}  d6 {[%clk 0:02:59]} 6. Bd2 {[%clk 0:02:21]}  O-O {[%clk 0:02:59]} 7. a3 {[%clk 0:02:18]}  Bxc3 {[%clk 0:02:58]} 8. Bxc3 {[%clk 0:02:19]}  Qe7 {[%clk 0:02:58]} 9. e3 {[%clk 0:02:12]}  e5 {[%clk 0:02:58]} 10. d5 {[%clk 0:02:13]}  Nd8 {[%clk 0:02:57]} 11. Be2 {[%clk 0:02:13]}  a5 {[%clk 0:02:55]} 12. b3 {[%clk 0:02:12]}  Nd7 {[%clk 0:02:46]} 13. O-O {[%clk 0:02:11]}  f5 {[%clk 0:02:47]} 14. Nd2 {[%clk 0:02:11]}  Nf6 {[%clk 0:02:42]} 15. b4 {[%clk 0:02:06]}  b6 {[%clk 0:02:41]} 16. f3 {[%clk 0:02:05]}  Nf7 {[%clk 0:02:40]} 17. Bd3 {[%clk 0:02:03]}  Nh6 {[%clk 0:02:38]} 18. bxa5 {[%clk 0:01:58]}  bxa5 {[%clk 0:02:39]} 19. Rab1 {[%clk 0:01:56]}  Bd7 {[%clk 0:02:33]} 20. e4 {[%clk 0:01:50]}  Nh5 {[%clk 0:02:31]} 21. g3 {[%clk 0:01:40]}  Qg5 {[%clk 0:02:28]} 22. Rf2 {[%clk 0:01:34]}  f4 {[%clk 0:02:23]} 23. g4 {[%clk 0:01:33]}  Bxg4 {[%clk 0:02:21]} 24. fxg4 {[%clk 0:01:33]}  Nxg4 {[%clk 0:02:21]} 25. Nf3 {[%clk 0:01:34]}  Qh6 {[%clk 0:02:16]} 26. Rg2 {[%clk 0:01:33]}  Ne3 {[%clk 0:02:16]} 27. Qe2 {[%clk 0:01:28]}  Nf6 {[%clk 0:02:01]} 28. a4 {[%clk 0:01:15]}  Rfb8 {[%clk 0:01:51]} 29. Rb5 {[%clk 0:01:14]}  Rxb5 {[%clk 0:01:51]} 30. cxb5 {[%clk 0:01:15]}  Qh5 {[%clk 0:01:28]} 31. Rg5 {[%clk 0:01:08]}  Qh3 {[%clk 0:01:22]} 32. Bd2 {[%clk 0:01:03]}  Nfg4 {[%clk 0:01:13]} 33. Bxe3 {[%clk 0:00:58]}  fxe3 {[%clk 0:01:07]} 34. Qg2 {[%clk 0:00:53]}  Qxg2+ {[%clk 0:01:05]} 35. Kxg2 {[%clk 0:00:54]}  Nf2 {[%clk 0:01:04]} 36. Ne1 {[%clk 0:00:49]}  g6 {[%clk 0:00:52]} 37. Bc2 {[%clk 0:00:44]}  Rf8 {[%clk 0:00:52]} 38. Rg3 {[%clk 0:00:43]}  e2 {[%clk 0:00:41]} 39. Re3 {[%clk 0:00:31]}  Ng4 {[%clk 0:00:31]} 40. Rxe2 {[%clk 0:00:31]}  Rf4 {[%clk 0:00:29]} 41. h3 {[%clk 0:00:25]}  Nf6 {[%clk 0:00:29]} 42. Rf2 {[%clk 0:00:26]}  Nh5 {[%clk 0:00:29]} 43. Rxf4 {[%clk 0:00:26]}  Nxf4+ {[%clk 0:00:29]} 44. Kg3 {[%clk 0:00:25]}  Ne2+ {[%clk 0:00:29]} 45. Kf3 {[%clk 0:00:23]}  Nd4+ {[%clk 0:00:30]} 46. Ke3 {[%clk 0:00:21]}  g5 {[%clk 0:00:28]} 47. Bd1 {[%clk 0:00:21]}  Kg7 {[%clk 0:00:20]} 48. Nf3 {[%clk 0:00:21]}  Nxf3 {[%clk 0:00:20]} 49. Kxf3 {[%clk 0:00:20]}  h5 {[%clk 0:00:19]} 50. Kg3 {[%clk 0:00:20]}  Kh6 {[%clk 0:00:19]} 51. Be2 {[%clk 0:00:20]}  Kg6 {[%clk 0:00:19]} 52. Kf2 {[%clk 0:00:19]}  Kh6 {[%clk 0:00:19]} 53. Ke3 {[%clk 0:00:19]}  Kg6 {[%clk 0:00:19]} 54. Kd2 {[%clk 0:00:19]}  Kh6 {[%clk 0:00:19]} 55. Kd3 {[%clk 0:00:20]}  Kg6 {[%clk 0:00:19]} 56. Kc4 {[%clk 0:00:20]}  Kh6 {[%clk 0:00:20]} 57. b6 {[%clk 0:00:20]}  cxb6 {[%clk 0:00:20]} 58. Kb5 {[%clk 0:00:21]} 1-0


[Site "https://www.chess.com"]

[Event "Titled Tuesday Blitz February 22 Late 2022"]
[White "Paravyan, David"]
[Black "Kobalia, Mikhail"]
[WhiteFideId "4194985"]
[BlackFideId "4119150"]
[WhiteElo "2569"]
[BlackElo "2667"]
[Result "1/2-1/2"]
[Round "07"]
[TimeControl "180+1"]
[Date "2022.02.22"]
[WhiteClock "0:00:08"]
[BlackClock "0:00:06"]

1. e4 {[%clk 0:02:58]}  c6 {[%clk 0:02:59]} 2. d4 {[%clk 0:02:58]}  d5 {[%clk 0:03:00]} 3. e5 {[%clk 0:02:59]}  Bf5 {[%clk 0:02:59]} 4. h4 {[%clk 0:02:59]}  h5 {[%clk 0:02:59]} 5. Bd3 {[%clk 0:03:00]}  Bxd3 {[%clk 0:02:57]} 6. Qxd3 {[%clk 0:03:01]}  Qa5+ {[%clk 0:02:57]} 7. Nd2 {[%clk 0:03:00]}  e6 {[%clk 0:02:55]} 8. Nf3 {[%clk 0:03:01]}  Qa6 {[%clk 0:02:54]} 9. c4 {[%clk 0:03:01]}  Nh6 {[%clk 0:02:52]} 10. O-O {[%clk 0:03:00]}  Nf5 {[%clk 0:02:52]} 11. Qc3 {[%clk 0:02:59]}  Be7 {[%clk 0:02:42]} 12. cxd5 {[%clk 0:02:34]}  cxd5 {[%clk 0:02:42]} 13. Nb3 {[%clk 0:02:34]}  Nc6 {[%clk 0:02:37]} 14. Bg5 {[%clk 0:02:32]}  Rc8 {[%clk 0:02:28]} 15. Bxe7 {[%clk 0:02:26]}  Ncxe7 {[%clk 0:02:26]} 16. Nc5 {[%clk 0:02:26]}  Qc6 {[%clk 0:02:16]} 17. Rac1 {[%clk 0:00:58]}  b6 {[%clk 0:02:14]} 18. Nd3 {[%clk 0:00:56]}  Qxc3 {[%clk 0:02:02]} 19. Rxc3 {[%clk 0:00:57]}  Rxc3 {[%clk 0:02:01]} 20. bxc3 {[%clk 0:00:58]}  Kd7 {[%clk 0:01:59]} 21. Rb1 {[%clk 0:00:58]}  Rc8 {[%clk 0:01:57]} 22. Rb3 {[%clk 0:00:50]}  Nc6 {[%clk 0:01:56]} 23. g3 {[%clk 0:00:48]}  Na5 {[%clk 0:01:55]} 24. Ra3 {[%clk 0:00:48]}  Rc7 {[%clk 0:01:45]} 25. Kg2 {[%clk 0:00:48]}  Nc4 {[%clk 0:01:44]} 26. Rb3 {[%clk 0:00:47]}  Na5 {[%clk 0:01:41]} 27. Ra3 {[%clk 0:00:48]}  Ke7 {[%clk 0:01:25]} 28. Nf4 {[%clk 0:00:41]}  g6 {[%clk 0:01:24]} 29. Ne2 {[%clk 0:00:37]}  Nh6 {[%clk 0:01:11]} 30. Nd2 {[%clk 0:00:33]}  Nf5 {[%clk 0:00:57]} 31. Kf1 {[%clk 0:00:33]}  Kd7 {[%clk 0:00:50]} 32. Ke1 {[%clk 0:00:33]}  Ne7 {[%clk 0:00:49]} 33. Kd1 {[%clk 0:00:31]}  Nec6 {[%clk 0:00:45]} 34. Nf4 {[%clk 0:00:31]}  a6 {[%clk 0:00:45]} 35. Nd3 {[%clk 0:00:30]}  Na7 {[%clk 0:00:44]} 36. Nc5+ {[%clk 0:00:19]}  bxc5 {[%clk 0:00:37]} 37. Rxa5 {[%clk 0:00:19]}  Nb5 {[%clk 0:00:38]} 38. dxc5 {[%clk 0:00:07]}  Rxc5 {[%clk 0:00:38]} 39. Rxa6 {[%clk 0:00:06]}  Nxc3+ {[%clk 0:00:37]} 40. Ke1 {[%clk 0:00:06]}  Rc7 {[%clk 0:00:32]} 41. a4 {[%clk 0:00:05]}  Rb7 {[%clk 0:00:29]} 42. Nf3 {[%clk 0:00:04]}  Ne4 {[%clk 0:00:21]} 43. Ng5 {[%clk 0:00:05]}  Rb1+ {[%clk 0:00:19]} 44. Ke2 {[%clk 0:00:05]}  Rb2+ {[%clk 0:00:19]} 45. Ke3 {[%clk 0:00:05]}  Nxg5 {[%clk 0:00:17]} 46. hxg5 {[%clk 0:00:06]}  d4+ {[%clk 0:00:16]} 47. Kf3 {[%clk 0:00:06]}  Rb4 {[%clk 0:00:13]} 48. Ke4 {[%clk 0:00:05]}  Rb2 {[%clk 0:00:11]} 49. f4 {[%clk 0:00:06]}  Rb3 {[%clk 0:00:10]} 50. Ra7+ {[%clk 0:00:04]}  Ke8 {[%clk 0:00:10]} 51. a5 {[%clk 0:00:05]}  Rxg3 {[%clk 0:00:09]} 52. Kxd4 {[%clk 0:00:05]}  h4 {[%clk 0:00:07]} 53. a6 {[%clk 0:00:06]}  Ra3 {[%clk 0:00:07]} 54. Ra8+ {[%clk 0:00:06]}  Ke7 {[%clk 0:00:07]} 55. a7 {[%clk 0:00:04]}  h3 {[%clk 0:00:06]} 56. Ke4 {[%clk 0:00:04]}  h2 {[%clk 0:00:06]} 57. Rh8 {[%clk 0:00:04]}  Ra4+ {[%clk 0:00:06]} 58. Kf3 {[%clk 0:00:04]}  Rxa7 {[%clk 0:00:06]} 59. Rxh2 {[%clk 0:00:05]}  Ra3+ {[%clk 0:00:06]} 60. Kg4 {[%clk 0:00:06]}  Rb3 {[%clk 0:00:05]} 61. Rg2 {[%clk 0:00:06]}  Ra3 {[%clk 0:00:06]} 62. Rh2 {[%clk 0:00:07]}  Rb3 {[%clk 0:00:06]} 63. Rg2 {[%clk 0:00:07]}  Ra3 {[%clk 0:00:06]} 64. Rh2 {[%clk 0:00:08]} 1/2-1/2


[Site "https://www.chess.com"]

[Event "Titled Tuesday Blitz February 22 Late 2022"]
[White "Pinheiro, Iung Alicio de O."]
[Black "Bouget, Alexandre"]
[WhiteFideId "2104350"]
[BlackFideId "681318"]
[WhiteElo "2591"]
[BlackElo "2178"]
[Result "1/2-1/2"]
[Round "07"]
[TimeControl "180+1"]
[Date "2022.02.23"]
[WhiteClock "0:00:08"]
[BlackClock "0:00:04"]

1. e4 {[%clk 0:02:19]}  e5 {[%clk 0:02:58]} 2. Bc4 {[%clk 0:02:19]}  Nc6 {[%clk 0:02:57]} 3. d3 {[%clk 0:02:19]}  d6 {[%clk 0:02:57]} 4. Nc3 {[%clk 0:02:16]}  g6 {[%clk 0:02:57]} 5. f4 {[%clk 0:02:16]}  Bg7 {[%clk 0:02:58]} 6. Nf3 {[%clk 0:02:16]}  Nge7 {[%clk 0:02:57]} 7. O-O {[%clk 0:02:14]}  O-O {[%clk 0:02:57]} 8. Qe1 {[%clk 0:01:58]}  exf4 {[%clk 0:02:57]} 9. Bxf4 {[%clk 0:01:57]}  Ne5 {[%clk 0:02:57]} 10. Bb3 {[%clk 0:01:56]}  Nxf3+ {[%clk 0:02:54]} 11. Rxf3 {[%clk 0:01:52]}  Be6 {[%clk 0:02:54]} 12. Qh4 {[%clk 0:01:45]}  d5 {[%clk 0:02:48]} 13. Bg5 {[%clk 0:01:41]}  f6 {[%clk 0:02:34]} 14. Bxf6 {[%clk 0:01:37]}  Bxf6 {[%clk 0:02:35]} 15. Rxf6 {[%clk 0:01:36]}  Bf7 {[%clk 0:02:12]} 16. Raf1 {[%clk 0:01:30]}  c6 {[%clk 0:02:06]} 17. exd5 {[%clk 0:01:23]}  cxd5 {[%clk 0:01:48]} 18. Qf2 {[%clk 0:00:56]}  Nf5 {[%clk 0:01:44]} 19. Rxf7 {[%clk 0:00:55]}  Kxf7 {[%clk 0:01:40]} 20. g4 {[%clk 0:00:53]}  Kg8 {[%clk 0:01:29]} 21. gxf5 {[%clk 0:00:52]}  Rxf5 {[%clk 0:01:30]} 22. Qg2 {[%clk 0:00:51]}  Rg5 {[%clk 0:01:30]} 23. Bxd5+ {[%clk 0:00:40]}  Kg7 {[%clk 0:01:27]} 24. Rf7+ {[%clk 0:00:30]}  Kh6 {[%clk 0:01:24]} 25. Bxb7 {[%clk 0:00:16]}  Rxg2+ {[%clk 0:01:21]} 26. Kxg2 {[%clk 0:00:15]}  Rb8 {[%clk 0:01:17]} 27. Ne4 {[%clk 0:00:08]}  Qe8 {[%clk 0:01:00]} 28. Rxh7+ {[%clk 0:00:06]}  Kxh7 {[%clk 0:00:56]} 29. Nf6+ {[%clk 0:00:07]}  Kh6 {[%clk 0:00:49]} 30. Nxe8 {[%clk 0:00:08]}  Rxb7 {[%clk 0:00:48]} 31. b3 {[%clk 0:00:05]}  Rb6 {[%clk 0:00:43]} 32. c4 {[%clk 0:00:04]}  Re6 {[%clk 0:00:30]} 33. Nc7 {[%clk 0:00:03]}  Re2+ {[%clk 0:00:31]} 34. Kg3 {[%clk 0:00:04]}  Re3+ {[%clk 0:00:30]} 35. Kf4 {[%clk 0:00:04]}  Rxd3 {[%clk 0:00:30]} 36. Nd5 {[%clk 0:00:03]}  Rd2 {[%clk 0:00:29]} 37. h3 {[%clk 0:00:04]}  Rxa2 {[%clk 0:00:28]} 38. Ke5 {[%clk 0:00:04]}  Rh2 {[%clk 0:00:25]} 39. c5 {[%clk 0:00:04]}  Rxh3 {[%clk 0:00:22]} 40. c6 {[%clk 0:00:05]}  Rh2 {[%clk 0:00:17]} 41. Kd4 {[%clk 0:00:04]}  Kg7 {[%clk 0:00:14]} 42. c7 {[%clk 0:00:04]}  Rh8 {[%clk 0:00:13]} 43. Ne7 {[%clk 0:00:04]}  g5 {[%clk 0:00:09]} 44. Ke5 {[%clk 0:00:04]}  Kf7 {[%clk 0:00:06]} 45. c8=Q {[%clk 0:00:04]}  Rxc8 {[%clk 0:00:05]} 46. Nxc8 {[%clk 0:00:05]}  Ke8 {[%clk 0:00:05]} 47. Nxa7 {[%clk 0:00:05]}  Kd7 {[%clk 0:00:04]} 48. Nb5 {[%clk 0:00:06]}  Kc6 {[%clk 0:00:04]} 49. Nc3 {[%clk 0:00:06]}  Kc5 {[%clk 0:00:04]} 50. Kf5 {[%clk 0:00:07]}  Kb4 {[%clk 0:00:04]} 51. Ne4 {[%clk 0:00:07]}  Kxb3 {[%clk 0:00:04]} 52. Nxg5 {[%clk 0:00:08]} 1/2-1/2


[Site "https://www.chess.com"]